fUST/lending_fUST_20241230
["ID","MTS","AMOUNT","RATE_DAILY","PERIOD"]
[347181862,1735553437823,-500.0,0.00013332,2]
[347181863,1735553437833,-500.0,0.00013332,2]
[347181864,1735553437842,-517.05,0.00013332,2]
[347181865,1735553437851,-500.0,0.00013332,2]
[347181866,1735553437860,-308.7959442,0.00013332,2]
[347181867,1735553437869,-500.0,0.00013332,2]
[347181868,1735553437878,-500.0,0.00013332,2]
[347181869,1735553437888,-500.0,0.00013332,2]
[347181870,1735553437897,-500.0,0.00013332,2]
[347181871,1735553437906,-500.0,0.00013332,2]
[347181872,1735553437916,-500.0,0.00013332,2]
[347181873,1735553437925,-500.0,0.00013332,2]
[347181874,1735553437934,-500.0,0.00013332,2]
[347181875,1735553437943,-500.0,0.00013332,2]
[347181876,1735553437952,-500.0,0.00013332,2]
[347181877,1735553437961,-380.68682267,0.00013332,2]
[347181878,1735553437971,-500.0,0.00013332,2]
[347181879,1735553437980,-500.0,0.00013332,2]
[347181880,1735553437989,-500.0,0.00013332,2]
[347181881,1735553437998,-500.0,0.00013332,2]
[347181882,1735553438007,-500.0,0.00013332,2]
[347181883,1735553438017,-500.0,0.00013332,2]
[347181884,1735553438026,-500.0,0.00013332,2]
[347181885,1735553438035,-500.0,0.00013332,2]
[347181886,1735553438044,-373.382751,0.00013332,2]
[347181887,1735553438057,-126.617249,0.00013332,2]
[347181888,1735553438066,-500.0,0.00013332,2]
[347181889,1735553438075,-397.11574375,0.00013332,2]
[347181890,1735553438084,-500.0,0.00013332,2]
[347181891,1735553438094,-500.0,0.00013333,2]
[347181892,1735553438103,-2895.03428643,0.00013333,2]
[347181893,1735553438115,-3954.92928354,0.00013333,2]
[347181894,1735553438124,-132274.04847723,0.00013333,2]
[347181895,1735553438133,-428880.84126705,0.00013333,2]
[347181896,1735553438142,-561.01924514,0.00013459,2]
[347181897,1735553438151,-1236.98825751,0.00013559,2]
[347181898,1735553438161,-500.0,0.00013606,2]
[347181899,1735553438169,-500.0,0.00013606,2]
[347181900,1735553438178,-500.0,0.00013606,2]
[347181901,1735553438187,-500.0,0.00013606,2]
[347181902,1735553438197,-500.0,0.00013606,2]
[347181903,1735553438208,-500.0,0.00013606,2]
[347181904,1735553438218,-500.0,0.00013606,2]
[347181905,1735553438321,-457.45625124,0.00013606,2]
[347181906,1735553438331,-500.0,0.00013606,2]
[347181907,1735553438341,-500.0,0.00013607,2]
[347181908,1735553438352,-561.01924512,0.00013666,2]
[347181909,1735553438362,-2331.8952588,0.00013699,2]
[347181910,1735553438372,-37057.3309285,0.00013699,2]
[347181911,1735553438381,-548.07376516,0.00013699,2]
[347181912,1735553438391,-548.07376516,0.00013699,2]
[347181913,1735553438401,-548.07376516,0.00013699,2]
[347181914,1735553438410,-548.07376516,0.00013699,2]
[347181915,1735553438420,-548.07376516,0.00013699,2]
[347181916,1735553438430,-548.07376516,0.00013699,2]
[347181917,1735553438440,-548.07376516,0.00013699,2]
[347181918,1735553438449,-548.07376516,0.00013699,2]
[347181919,1735553438459,-548.07376516,0.00013699,2]
[347181920,1735553438468,-548.07376516,0.00013699,2]
[347181921,1735553438478,-548.07376516,0.00013699,2]
[347181922,1735553438487,-548.07376516,0.00013699,2]
[347181923,1735553438496,-548.07376516,0.00013699,2]
[347181924,1735553438505,-548.07376516,0.00013699,2]
[347181925,1735553438515,-548.07376516,0.00013699,2]
[347181926,1735553438524,-548.07376516,0.00013699,2]
[347181927,1735553438533,-548.07376516,0.00013699,2]
[347181928,1735553438543,-548.07376516,0.00013699,2]
[347181929,1735553438552,-548.07376516,0.00013699,2]
[347181930,1735553438562,-548.07376516,0.00013699,2]
[347181931,1735553438572,-548.07376516,0.00013699,2]
[347181932,1735553438585,-548.07376516,0.00013699,2]
[347181933,1735553438594,-548.07376516,0.00013699,2]
[347181934,1735553438603,-548.07376516,0.00013699,2]
[347181936,1735553438613,-548.07376516,0.00013699,2]
[347181937,1735553438622,-548.07376516,0.00013699,2]
[347181938,1735553438632,-548.07376516,0.00013699,2]
[347181939,1735553438641,-548.07376516,0.00013699,2]
[347181940,1735553438651,-548.07376516,0.00013699,2]
[347181941,1735553438660,-548.07376516,0.00013699,2]
[347181942,1735553438670,-548.07376516,0.00013699,2]
[347181943,1735553438680,-548.07376516,0.00013699,2]
[347181945,1735553438694,-548.07376516,0.00013699,2]
[347181946,1735553438704,-548.07376516,0.00013699,2]
[347181947,1735553438714,-548.07376516,0.00013699,2]
[347181948,1735553438725,-548.07376516,0.00013699,2]
[347181950,1735553438734,-548.07376516,0.00013699,2]
[347181952,1735553438743,-548.07376516,0.00013699,2]
[347181953,1735553438751,-548.07376516,0.00013699,2]
[347181954,1735553438763,-548.07376516,0.00013699,2]
[347181956,1735553438772,-548.07376516,0.00013699,2]
[347181958,1735553438781,-548.07376516,0.00013699,2]
[347181960,1735553438790,-548.07376516,0.00013699,2]
[347181961,1735553438799,-548.07376516,0.00013699,2]
[347181963,1735553438808,-548.07376516,0.00013699,2]
[347181964,1735553438817,-262.42338212,0.00013699,2]
[347181965,1735553438827,-548.07376516,0.00013699,2]
[347181966,1735553438835,-548.07376516,0.00013699,2]
[347181967,1735553438845,-548.07376516,0.00013699,2]
[347181968,1735553438854,-561.01924512,0.00013873,2]
[347181969,1735553438863,-400.35011695,0.0001388,2]
[347181970,1735553438872,-500.0,0.0001388,2]
[347181971,1735553438882,-500.0,0.0001388,2]
[347181972,1735553438891,-500.0,0.0001388,2]
[347181973,1735553438900,-500.0,0.0001388,2]
[347181974,1735553438909,-500.0,0.0001388,2]
[347181975,1735553438918,-1236.98825751,0.00013886,2]
[347181976,1735553438927,-400.0,0.00013973,2]
[347181977,1735553438937,-352.5060848,0.00014041,2]
[347181978,1735553438946,-561.01924512,0.0001408,2]
[347181979,1735553438956,-500.0,0.00014113,2]
[347181980,1735553438965,-500.0,0.00014113,2]
[347181981,1735553438975,-448.0095541,0.00014113,2]
[347181982,1735553438984,-160.88995045,0.00014113,2]
[347181983,1735553438993,-500.0,0.00014113,2]
[347181984,1735553439002,-500.0,0.00014113,2]
[347181985,1735553439012,-500.0,0.00014113,2]
[347181986,1735553439021,-500.0,0.00014113,2]
[347181987,1735553439030,-500.0,0.00014113,2]
[347181988,1735553439040,-500.0,0.00014113,2]
[347181989,1735553439050,-500.0,0.00014113,2]
[347181990,1735553439059,-500.0,0.00014113,2]
[347181991,1735553439070,-500.0,0.00014113,2]
[347181992,1735553439079,-500.0,0.00014113,2]
[347181993,1735553439089,-500.0,0.00014113,2]
[347181994,1735553439099,-500.0,0.00014113,2]
[347181995,1735553439108,-500.0,0.00014113,2]
[347181996,1735553439118,-500.0,0.00014113,2]
[347181997,1735553439128,-500.0,0.00014113,2]
[347181998,1735553439138,-500.0,0.00014113,2]
[347181999,1735553439148,-500.0,0.00014113,2]
[347182000,1735553439157,-500.0,0.00014113,2]
[347182002,1735553439169,-500.0,0.00014113,2]
[347182003,1735553439178,-500.0,0.00014113,2]
[347182005,1735553439188,-500.0,0.00014113,2]
[347182006,1735553439198,-500.0,0.00014113,2]
[347182007,1735553439208,-500.0,0.00014113,2]
[347182008,1735553439218,-500.0,0.00014113,2]
[347182009,1735553439228,-500.0,0.00014113,2]
[347182010,1735553439238,-500.0,0.00014113,2]
[347182011,1735553439248,-500.0,0.00014113,2]
[347182012,1735553439257,-500.0,0.00014113,2]
[347182013,1735553439267,-500.0,0.00014113,2]
[347182014,1735553439278,-500.0,0.00014113,2]
[347182015,1735553439289,-500.0,0.00014113,2]
[347182016,1735553439300,-500.0,0.00014113,2]
[347182018,1735553439311,-500.0,0.00014113,2]
[347182020,1735553439321,-500.0,0.00014113,2]
[347182021,1735553439331,-500.0,0.00014113,2]
[347182023,1735553439340,-500.0,0.00014113,2]
[347182024,1735553439350,-500.0,0.00014113,2]
[347182026,1735553439361,-500.0,0.00014113,2]
[347182028,1735553439373,-500.0,0.00014113,2]
[347182029,1735553439383,-253.94168291,0.00014113,2]
[347182030,1735553439394,-500.0,0.00014113,2]
[347182031,1735553439404,-500.0,0.00014113,2]
[347182032,1735553439414,-447.56,0.00014113,2]
[347182033,1735553439424,-554.90507457,0.00014113,2]
[347182034,1735553439433,-500.0,0.00014113,2]
[347182035,1735553439443,-500.0,0.00014113,2]
[347182036,1735553439452,-500.0,0.00014113,2]
[347182037,1735553439462,-500.0,0.00014113,2]
[347182038,1735553439472,-500.0,0.00014113,2]
[347182039,1735553439482,-500.0,0.00014113,2]
[347182040,1735553439491,-500.0,0.00014113,2]
[347182041,1735553439501,-500.0,0.00014113,2]
[347182042,1735553439511,-500.0,0.00014113,2]
[347182043,1735553439520,-500.0,0.00014113,2]
[347182044,1735553439530,-500.0,0.00014113,2]
[347182045,1735553439539,-500.0,0.00014113,2]
[347182046,1735553439549,-500.0,0.00014113,2]
[347182047,1735553439558,-500.0,0.00014113,2]
[347182048,1735553439567,-500.0,0.00014113,2]
[347182049,1735553439576,-500.0,0.00014113,2]
[347182050,1735553439586,-500.0,0.00014113,2]
[347182051,1735553439595,-500.0,0.00014113,2]
[347182052,1735553439604,-500.0,0.00014113,2]
[347182053,1735553439614,-500.0,0.00014113,2]
[347182054,1735553439623,-443.11,0.00014113,2]
[347182055,1735553439633,-500.0,0.00014113,2]
[347182056,1735553439642,-500.0,0.00014113,2]
[347182057,1735553439651,-500.0,0.00014113,2]
[347182058,1735553439661,-500.0,0.00014113,2]
[347182059,1735553439670,-388.48438315,0.00014113,2]
[347182060,1735553439680,-500.0,0.00014113,2]
[347182061,1735553439692,-501.70071587,0.00014113,2]
[347182062,1735553439701,-614.89580591,0.00014113,2]
[347182063,1735553439712,-500.0,0.00014113,2]
[347182064,1735553439723,-500.74447289,0.00014113,2]
[347182065,1735553439732,-504.01450601,0.00014113,2]
[347182066,1735553439742,-501.57834563,0.00014113,2]
[347182067,1735553439751,-529.25303001,0.00014113,2]
[347182068,1735553439761,-522.53,0.00014113,2]
[347182069,1735553439771,-501.39261914,0.00014113,2]
[347182070,1735553439781,-500.0,0.00014113,2]
[347182071,1735553439790,-500.0,0.00014113,2]
[347182072,1735553439799,-501.31129038,0.00014113,2]
[347182073,1735553439808,-500.23145671,0.00014113,2]
[347182074,1735553439817,-501.80478283,0.00014113,2]
[347182075,1735553439827,-500.0,0.00014113,2]
[347182076,1735553439836,-501.3182311,0.00014113,2]
[347182077,1735553439845,-500.66916425,0.00014113,2]
[347182078,1735553439855,-500.31788548,0.00014113,2]
[347182079,1735553439865,-502.09567895,0.00014113,2]
[347182080,1735553439875,-500.0,0.00014113,2]
[347182081,1735553439884,-501.64253892,0.00014113,2]
[347182082,1735553439893,-501.73570251,0.00014113,2]
[347182083,1735553439902,-500.52754916,0.00014113,2]
[347182085,1735553439911,-500.1747361,0.00014113,2]
[347182086,1735553439921,-526.28,0.00014113,2]
[347182088,1735553439930,-500.0,0.00014113,2]
[347182089,1735553439939,-500.0,0.00014113,2]
[347182091,1735553439948,-525.59254006,0.00014113,2]
[347182092,1735553439958,-500.0,0.00014113,2]
[347182093,1735553439966,-500.0,0.00014113,2]
[347182095,1735553439976,-500.23829805,0.00014113,2]
[347182096,1735553439985,-500.0,0.00014113,2]
[347182097,1735553439994,-500.0,0.00014113,2]
[347182098,1735553440003,-500.0,0.00014113,2]
[347182099,1735553440012,-500.0,0.00014113,2]
[347182100,1735553440021,-500.0,0.00014113,2]
[347182101,1735553440031,-544.69696242,0.00014113,2]
[347182102,1735553440040,-500.0,0.00014113,2]
[347182103,1735553440049,-500.0,0.00014113,2]
[347182104,1735553440058,-500.0,0.00014113,2]
[347182105,1735553440067,-2631.23,0.00014113,2]
[347182106,1735553440077,-2631.23,0.00014113,2]
[347182107,1735553440086,-2631.23,0.00014113,2]
[347182108,1735553440095,-2631.23,0.00014113,2]
[347182109,1735553440105,-2631.23,0.00014113,2]
[347182110,1735553440114,-500.89940823,0.00014113,2]
[347182111,1735553440123,-2631.23,0.00014113,2]
[347182112,1735553440132,-2631.23,0.00014113,2]
[347182113,1735553440142,-2631.23,0.00014113,2]
[347182114,1735553440151,-2631.23,0.00014113,2]
[347182115,1735553440160,-2631.23,0.00014113,2]
[347182116,1735553440169,-2631.23,0.00014113,2]
[347182117,1735553440179,-2631.23,0.00014113,2]
[347182118,1735553440188,-2631.23,0.00014113,2]
[347182119,1735553440197,-2631.23,0.00014113,2]
[347182120,1735553440208,-2631.23,0.00014113,2]
[347182121,1735553440218,-2631.23,0.00014113,2]
[347182122,1735553440227,-2631.23,0.00014113,2]
[347182123,1735553440314,-2631.23,0.00014113,2]
[347182124,1735553440325,-2631.23,0.00014113,2]
[347182125,1735553440334,-2631.23,0.00014113,2]
[347182126,1735553440344,-2631.23,0.00014113,2]
[347182127,1735553440354,-500.42590604,0.00014113,2]
[347182128,1735553440363,-2631.23,0.00014113,2]
[347182129,1735553440374,-2631.23,0.00014113,2]
[347182130,1735553440385,-2631.36026297,0.00014113,2]
[347182131,1735553440396,-500.0,0.00014113,2]
[347182132,1735553440406,-500.0,0.00014113,2]
[347182133,1735553440416,-500.0,0.00014113,2]
[347182134,1735553440426,-500.0,0.00014113,2]
[347182135,1735553440435,-500.0,0.00014113,2]
[347182136,1735553440445,-500.0,0.00014113,2]
[347182137,1735553440456,-494.7567196,0.00014113,2]
[347182138,1735553440467,-500.0,0.00014113,2]
[347182139,1735553440478,-500.0,0.00014113,2]
[347182140,1735553440488,-500.0,0.00014113,2]
[347182141,1735553440498,-500.0,0.00014113,2]
[347182142,1735553440507,-500.0,0.00014113,2]
[347182143,1735553440517,-500.93117297,0.00014113,2]
[347182144,1735553440526,-1000.0,0.00014113,2]
[347182145,1735553440536,-500.4765848,0.00014113,2]
[347182146,1735553440545,-500.0,0.00014113,2]
[347182147,1735553440555,-502.95489675,0.00014113,2]
[347182148,1735553440564,-500.47267232,0.00014113,2]
[347182149,1735553440574,-500.22333738,0.00014113,2]
[347182150,1735553440583,-500.50975555,0.00014113,2]
[347182151,1735553440593,-500.0,0.00014113,2]
[347182152,1735553440603,-500.0,0.00014113,2]
[347182153,1735553440612,-500.0,0.00014113,2]
[347182154,1735553440622,-500.0,0.00014113,2]
[347182155,1735553440631,-383.52264034,0.00014113,2]
[347182156,1735553440641,-501.64212445,0.00014113,2]
[347182157,1735553440650,-500.0,0.00014113,2]
[347182158,1735553440659,-500.82494518,0.00014113,2]
[347182159,1735553440668,-500.0,0.00014113,2]
[347182160,1735553440679,-500.98345046,0.00014113,2]
[347182161,1735553440691,-500.0,0.00014113,2]
[347182162,1735553440700,-500.0,0.00014113,2]
[347182163,1735553440712,-500.0,0.00014113,2]
[347182164,1735553440721,-500.0,0.00014113,2]
[347182165,1735553440732,-500.0,0.00014113,2]
[347182166,1735553440741,-151.0,0.00014113,2]
[347182167,1735553440750,-500.0,0.00014113,2]
[347182168,1735553440759,-500.0,0.00014113,2]
[347182169,1735553440771,-209.22446935,0.00014113,2]
[347182170,1735553440781,-500.0,0.00014113,2]
[347182171,1735553440790,-500.0,0.00014113,2]
[347182172,1735553440799,-500.0,0.00014113,2]
[347182173,1735553440809,-501.41687092,0.00014113,2]
[347182174,1735553440818,-500.0,0.00014113,2]
[347182175,1735553440828,-500.0,0.00014113,2]
[347182176,1735553440837,-500.0,0.00014113,2]
[347182177,1735553440846,-500.0,0.00014113,2]
[347182178,1735553440857,-500.0,0.00014113,2]
[347182179,1735553440866,-500.0,0.00014113,2]
[347182180,1735553440876,-500.0,0.00014113,2]
[347182181,1735553440885,-500.0,0.00014113,2]
[347182182,1735553440895,-1057.78841,0.00014113,2]
[347182183,1735553440904,-3010.081874,0.00014113,2]
[347182184,1735553440913,-1057.78841,0.00014113,2]
[347182185,1735553440923,-500.39211905,0.00014113,2]
[347182186,1735553440932,-3010.081874,0.00014113,2]
[347182187,1735553440942,-500.0,0.00014113,2]
[347182188,1735553440951,-500.0,0.00014113,2]
[347182189,1735553440962,-500.0,0.00014113,2]
[347182190,1735553440971,-500.0,0.00014113,2]
[347182191,1735553440980,-500.0,0.00014154,2]
[347182192,1735553440990,-500.0,0.00014154,2]
[347182193,1735553440999,-500.0,0.00014154,2]
[347182194,1735553441008,-500.0,0.00014154,2]
[347182195,1735553441017,-1236.98825751,0.00014212,2]
[347182196,1735553441027,-561.01924512,0.00014287,2]
[347182197,1735553441036,-352.5060848,0.00014341,2]
[347182198,1735553441045,-228.805234,0.00014341,2]
[347182199,1735553441055,-500.0,0.00014387,2]
[347182200,1735553441064,-500.0,0.00014387,2]
[347182201,1735553441074,-500.0,0.00014387,2]
[347182202,1735553441084,-347.28108892,0.00014387,2]
[347182203,1735553441094,-500.0,0.00014387,2]
[347182204,1735553441103,-500.0,0.00014387,2]
[347182205,1735553441114,-500.0,0.00014387,2]
[347182206,1735553441123,-500.0,0.00014387,2]
[347182207,1735553441133,-500.0,0.00014387,2]
[347182208,1735553441143,-151.93,0.00014387,2]
[347182209,1735553441152,-500.0,0.00014387,2]
[347182210,1735553441162,-560.58866601,0.00014387,2]
[347182211,1735553441171,-402.9,0.00014387,2]
[347182212,1735553441180,-500.0,0.00014387,2]
[347182213,1735553441190,-503.33198276,0.00014387,2]
[347182214,1735553441199,-1000.0,0.00014387,2]
[347182215,1735553441211,-500.0,0.00014387,2]
[347182216,1735553441220,-500.0,0.00014387,2]
[347182217,1735553441229,-500.0,0.00014387,2]
[347182218,1735553441239,-500.0,0.00014387,2]
[347182219,1735553441249,-500.0,0.00014387,2]
[347182220,1735553441258,-503.94390834,0.00014387,2]
[347182221,1735553441267,-500.0,0.00014387,2]
[347182222,1735553441277,-500.0,0.00014387,2]
[347182223,1735553441286,-500.0,0.00014387,2]
[347182224,1735553441295,-500.0,0.00014387,2]
[347182225,1735553441304,-500.0,0.00014387,2]
[347182226,1735553441314,-500.0,0.00014387,2]
[347182227,1735553441323,-550.83429209,0.00014387,2]
[347182228,1735553441332,-500.0,0.00014387,2]
[347182229,1735553441341,-500.0,0.00014387,2]
[347182230,1735553441350,-500.83749798,0.00014387,2]
[347182231,1735553441360,-500.0,0.00014387,2]
[347182232,1735553441369,-500.0,0.00014387,2]
[347182233,1735553441379,-500.64511689,0.00014387,2]
[347182234,1735553441389,-500.0,0.00014387,2]
[347182235,1735553441398,-529.68855111,0.00014387,2]
[347182236,1735553441407,-352.5060848,0.000144,2]
[347182237,1735553441417,-500.0,0.00014428,2]
[347182238,1735553441426,-500.0,0.00014428,2]
[347182239,1735553441435,-500.0,0.00014428,2]
[347182240,1735553441445,-500.0,0.00014428,2]
[347182241,1735553441455,-158.07192633,0.000145,2]
[347182242,1735553441464,-500.58599813,0.00014524,2]
[347182243,1735553441474,-502.31100259,0.00014524,2]
[347182244,1735553441483,-500.59085448,0.00014524,2]
[347182245,1735553441493,-500.0,0.00014524,2]
[347182246,1735553441502,-1236.98825751,0.00014538,2]
[347182247,1735553441511,-527.06673634,0.00014542,2]
[347182248,1735553441520,-352.5060848,0.000146,2]
[347182249,1735553441530,-420.0,0.00014615,2]
[347182250,1735553441539,-500.0,0.00014661,2]
[347182251,1735553441548,-500.0,0.00014661,2]
[347182252,1735553441558,-500.0,0.00014661,2]
[347182253,1735553441567,-500.0,0.00014661,2]
[347182254,1735553441576,-500.0,0.00014661,2]
[347182255,1735553441585,-500.0,0.00014661,2]
[347182256,1735553441595,-609.45,0.00014661,2]
[347182257,1735553441604,-1112.81732426,0.00014661,2]
[347182258,1735553441612,-500.0,0.00014661,2]
[347182259,1735553441622,-503.46576888,0.00014661,2]
[347182260,1735553441631,-454.24546935,0.00014661,2]
[347182261,1735553441641,-500.0,0.00014661,2]
[347182262,1735553441650,-501.47620404,0.00014661,2]
[347182263,1735553441659,-504.2968186,0.00014661,2]
[347182264,1735553441668,-500.0,0.00014661,2]
[347182265,1735553441677,-503.50870849,0.00014661,2]
[347182266,1735553441689,-500.0,0.00014661,2]
[347182267,1735553441698,-500.0,0.00014661,2]
[347182268,1735553441709,-500.0,0.00014692,2]
[347182269,1735553441719,-500.24,0.00014692,2]
[347182270,1735553441729,-500.0,0.00014692,2]
[347182271,1735553441739,-500.0,0.00014692,2]
[347182272,1735553441748,-500.0,0.00014692,2]
[347182273,1735553441757,-500.0,0.00014692,2]
[347182274,1735553441767,-500.0,0.00014692,2]
[347182275,1735553441777,-500.0,0.00014692,2]
[347182276,1735553441786,-500.0,0.00014692,2]
[347182277,1735553441795,-500.0,0.00014692,2]
[347182278,1735553441804,-500.0,0.00014692,2]
[347182279,1735553441813,-500.0,0.00014692,2]
[347182280,1735553441822,-500.0,0.00014692,2]
[347182281,1735553441831,-500.0,0.00014692,2]
[347182282,1735553441840,-502.76467066,0.00014692,2]
[347182283,1735553441849,-340.49369045,0.00014692,2]
[347182284,1735553441858,-500.0,0.00014692,2]
[347182285,1735553441867,-500.0,0.00014692,2]
[347182286,1735553441876,-500.6222109,0.00014692,2]
[347182287,1735553441885,-500.0,0.00014692,2]
[347182288,1735553441894,-516.32278798,0.00014692,2]
[347182289,1735553441903,-500.0,0.00014692,2]
[347182290,1735553441912,-500.0,0.00014692,2]
[347182291,1735553441920,-500.0,0.00014692,2]
[347182292,1735553441929,-500.0,0.00014692,2]
[347182293,1735553441939,-500.0,0.00014692,2]
[347182294,1735553441948,-502.27891798,0.00014692,2]
[347182295,1735553441957,-417.76680384,0.00014692,2]
[347182296,1735553441967,-500.0,0.00014692,2]
[347182297,1735553441978,-500.93767852,0.00014692,2]
[347182298,1735553441987,-216.0355495,0.00014692,2]
[347182299,1735553441996,-501.09466008,0.00014692,2]
[347182300,1735553442005,-500.0,0.00014692,2]
[347182301,1735553442015,-500.0,0.00014692,2]
[347182302,1735553442024,-365.06935405,0.00014692,2]
[347182303,1735553442033,-496.37974095,0.00014692,2]
[347182304,1735553442043,-500.0,0.00014692,2]
[347182305,1735553442052,-501.90084833,0.00014692,2]
[347182306,1735553442129,-500.0,0.00014692,2]
[347182307,1735553442139,-500.0,0.00014692,2]
[347182308,1735553442149,-500.0,0.00014692,2]
[347182309,1735553442158,-500.0,0.00014692,2]
[347182310,1735553442168,-899.57,0.00014692,2]
[347182311,1735553442177,-500.0,0.00014692,2]
[347182312,1735553442187,-500.0,0.00014692,2]
[347182313,1735553442197,-500.88397465,0.00014692,2]
[347182314,1735553442207,-500.0,0.00014692,2]
[347182315,1735553442216,-500.0,0.00014692,2]
[347182316,1735553442225,-500.0,0.00014692,2]
[347182317,1735553442235,-500.0,0.00014692,2]
[347182318,1735553442244,-500.8406361,0.00014692,2]
[347182319,1735553442254,-500.0,0.00014692,2]
[347182320,1735553442269,-500.0,0.00014692,2]
[347182321,1735553442282,-645.10167563,0.00014692,2]
[347182322,1735553442294,-500.95652555,0.00014692,2]
[347182324,1735553442303,-501.90261125,0.00014692,2]
[347182326,1735553442312,-500.0,0.00014692,2]
[347182328,1735553442321,-500.43843458,0.00014692,2]
[347182330,1735553442331,-500.0,0.00014692,2]
[347182332,1735553442339,-500.31575429,0.00014692,2]
[347182333,1735553442349,-500.0,0.00014692,2]
[347182334,1735553442358,-500.24294351,0.00014692,2]
[347182335,1735553442368,-643.42585848,0.00014692,2]
[347182336,1735553442378,-501.20344896,0.00014692,2]
[347182338,1735553442388,-500.0800814,0.00014692,2]
[347182340,1735553442398,-502.02025665,0.00014692,2]
[347182341,1735553442407,-1398.82,0.00014692,2]
[347182343,1735553442417,-500.0,0.00014692,2]
[347182345,1735553442426,-500.0,0.00014692,2]
[347182347,1735553442436,-501.15759538,0.00014692,2]
[347182349,1735553442445,-500.0,0.00014692,2]
[347182350,1735553442455,-500.86935964,0.00014692,2]
[347182351,1735553442465,-6631.15,0.00014692,2]
[347182353,1735553442474,-501.36039727,0.00014692,2]
[347182354,1735553442484,-500.0,0.00014692,2]
[347182355,1735553442494,-500.0,0.00014692,2]
[347182356,1735553442503,-500.0,0.00014692,2]
[347182357,1735553442513,-503.34,0.00014692,2]
[347182358,1735553442522,-500.32150387,0.00014692,2]
[347182359,1735553442531,-500.0,0.00014692,2]
[347182360,1735553442541,-500.0,0.00014692,2]
[347182362,1735553442550,-500.0,0.00014692,2]
[347182363,1735553442559,-500.0,0.00014692,2]
[347182364,1735553442569,-500.0,0.00014692,2]
[347182365,1735553442578,-2678.1,0.00014692,2]
[347182366,1735553442587,-500.0,0.00014692,2]
[347182367,1735553442596,-597.4016462,0.00014692,2]
[347182368,1735553442606,-500.0,0.00014692,2]
[347182369,1735553442615,-500.0,0.00014692,2]
[347182370,1735553442625,-501.65111526,0.00014692,2]
[347182371,1735553442635,-500.0,0.00014692,2]
[347182372,1735553442644,-500.0,0.00014692,2]
[347182373,1735553442653,-510.38972423,0.00014692,2]
[347182374,1735553442663,-500.0,0.00014692,2]
[347182375,1735553442672,-228.04096205,0.00014692,2]
[347182376,1735553442682,-500.96138831,0.00014692,2]
[347182377,1735553442694,-501.09700744,0.00014692,2]
[347182378,1735553442703,-500.0,0.00014692,2]
[347182379,1735553442713,-500.0,0.00014692,2]
[347182380,1735553442723,-328.28,0.00014692,2]
[347182381,1735553442733,-501.23125901,0.00014692,2]
[347182382,1735553442742,-500.32111595,0.00014692,2]
[347182383,1735553442751,-500.0,0.00014692,2]
[347182384,1735553442761,-500.0,0.00014692,2]
[347182385,1735553442773,-500.42038272,0.00014692,2]
[347182386,1735553442782,-500.0,0.00014692,2]
[347182387,1735553442792,-500.0,0.00014692,2]
[347182388,1735553442801,-500.0,0.00014692,2]
[347182389,1735553442810,-500.89187948,0.00014692,2]
[347182390,1735553442819,-500.0,0.00014692,2]
[347182391,1735553442829,-500.0,0.00014692,2]
[347182392,1735553442838,-500.0,0.00014692,2]
[347182393,1735553442847,-544.04,0.00014692,2]